Cogmind - Beta 13 @@@ ROGUE MODE // 2024.04.09 @ 06:48:30 Player: sick0r Result: Destroyed by I6-7NY(R) with Subdweller Laser Performance ------------- Evolutions (0) 0 Regions Visited (2) 400 Robots Destroyed (25) 125 Value Destroyed (687) 687 Prototype IDs (1) 20 Alien Tech Used (0) 0 Bonus (0) 0 TOTAL SCORE: 1232 Bonus ------- None Cogmind --------- Core Integrity 0/250 Matter 296/300 Energy 109/125 System Corruption 0% Temperature Cool (9) Movement Rolling (95) Ox1 Location -10/Subcaves Parts ------- > --- POWER (1) -------- Light Ion Engine > --- PROPULSION (2) --- Wheel Wheel > --- UTILITY (2) ------ Large Storage Unit Utility Shielding > --- WEAPON (2) ------- Improved Medium Laser Improved Medium Laser > --- INVENTORY (15) --- Light Ion Engine Wheel Wheel Wheel Compact Wheel Large Storage Unit Small Battery (100) Salvage Targeting Computer ECM Suite Power Shielding Propulsion Shielding Improved Medium Laser Improved Medium Laser Plasma Cutter Peak State ------------ > --- POWER ------------ Light Ion Engine > --- PROPULSION ------- Compact Wheel Compact Wheel > --- UTILITY ---------- Large Storage Unit Utility Shielding > --- WEAPON ----------- Improved Medium Laser Improved Medium Laser > --- INVENTORY -------- Light Ion Engine Aluminum Leg Aluminum Leg Wheel Wheel Compact Wheel Large Storage Unit Small Battery Salvage Targeting Computer ECM Suite Propulsion Shielding Improved Medium Laser Improved Medium Laser Plasma Cutter [Rating: 13] Favorites ----------- Power Light Ion Engine Engine Light Ion Engine Propulsion Wheel Treads Light Treads Wheel Wheel Utility Utility Shielding Storage Large Storage Unit Protection Utility Shielding Weapon Improved Medium Laser Energy Gun Improved Medium Laser Ballistic Gun Assault Rifle Launcher Grenade Launcher Build | -11 -10 -10 ------- Run | Yrd Mat Sub Slots Evolved . | . . . Power . | . . . Propulsion . | . . . Utility . | . . . Weapon . | . . . Parts Attached 20 | 6 14 . Power 3 | 1 2 . Engine 3 | 1 2 . Core . | . . . Reactor . | . . . Propulsion 8 | 2 6 . Treads 2 | . 2 . Leg . | . . . Wheel 6 | 2 4 . Hover . | . . . Flight . | . . . Utility 3 | 1 2 . Device . | . . . Storage 2 | 1 1 . Processor . | . . . Hackware . | . . . Protection 1 | . 1 . Artifact . | . . . Weapon 6 | 2 4 . Energy Gun 4 | 1 3 . Energy Cannon . | . . . Ballistic Gun 1 | 1 . . Ballistic Cannon . | . . . Launcher 1 | . 1 . Special Weapon . | . . . Impact Weapon . | . . . Slashing Weapon . | . . . Piercing Weapon . | . . . Special Melee Weapon . | . . . Unidentified Prototypes 1 | . 1 . Parts Lost 7 | . 7 . Power 1 | . 1 . Propulsion 2 | . 2 . Utility . | . . . Weapon 4 | . 4 . Highest Loss Streak 3 | . 3 . To Critical Strikes . | . . . Average Slot Usage (%) 96 | . 96 100 Engine 13 | . 13 14 Treads 7 | . 7 . Wheel 19 | . 19 28 Storage 14 | . 14 14 Protection 13 | . 13 14 Energy Gun 18 | . 17 28 Ballistic Gun 6 | . 6 . Launcher 2 | . 2 . Naked Turns . | . . . Heaviest Build 30 | 12 30 30 Greatest Support 40 | 26 40 20 Greatest Overweight (x) 1 | . 1 1 Average Overweight (x) . | . . 1 Largest Inventory Capacity 15 | 8 15 15 Average Capacity 14 | 7 14 15 Most Carried 15 | 7 15 14 Average Carried 10 | 4 10 14 Final Capacity 15 | 8 15 15 Final Carried 14 | 7 14 14 Class Distribution -------------------- 100% | Mutant Dominant Class ---------------- Mutant | -10/Materials Mutant | -10/Subcaves Resources | -11 -10 -10 ----------- Run | Yrd Mat Sub Matter Collected 599 | 266 292 41 Remotely . | . . . Salvage Created 758 | 65 656 37 Parts 51 | 2 45 4 Haulers Intercepted . | . . . Recyclers Shooed . | . . . Parts Field Recycled . | . . . Retrieved Matter . | . . . Parts Self-Destructed . | . . . Prevented . | . . . Kills | -11 -10 -10 ------- Run | Yrd Mat Sub Combat Hostiles Destroyed 18 | . 17 1 Guns 12 | . 11 1 AOE 6 | . 6 . Classes Destroyed 7 | 1 5 1 Worker 2 | . 2 . Builder 1 | . 1 . Recycler 1 | 1 . . Watcher 3 | . 3 . Swarmer 2 | . 2 . Grunt 15 | . 15 . Subdweller 1 | . . 1 Best Kill Streak 8 | 1 8 1 Combat Bots Only 4 | . 4 1 Max Kills in Single Turn 3 | 1 3 1 Gunslinging . | . . . Exploded 3 | . 3 . Melee . | . . . Uniques/NPCs Destroyed . | . . . Combat | -11 -10 -10 -------- Run | Yrd Mat Sub Hostile Shots Fired 123 | . 117 6 Missed 35 | . 33 2 Damage Taken 1177 | 26 1064 87 Core 269 | . 247 22 Absorbed by Shields . | . . . Redirected to Shielding 15 | . 15 . Core Remaining (%) 100 | 100 . . Volleys Fired 65 | 2 58 5 Largest 2 | 2 2 2 Hottest 112 | 60 112 112 Shots Fired 123 | 4 109 10 Gun 113 | 4 99 10 Cannon . | . . . Launcher 10 | . 10 . Special . | . . . Kinetic 46 | 2 44 . Thermal 49 | . 39 10 Explosive 10 | . 10 . Electromagnetic 18 | 2 16 . Robot Hit Streak 6 | 2 6 6 Robot Miss Streak 4 | 1 4 1 Penetration Max . | . . . Secondary Targets 7 | . 6 1 Max Gunslinging Chain 1 | . 1 1 Shots Hit Robots 73 | 3 62 8 Core Hits 46 | 2 41 3 Critical Kills . | . . . Critical Parts Destroyed . | . . . Critical Strikes 1 | . 1 . Burn 1 | . 1 . Melee Attacks . | . . . Impact . | . . . Slashing . | . . . Piercing . | . . . Sneak Attacks . | . . . Combat Hostiles . | . . . Follow-up Attacks . | . . . Damage Inflicted 1413 | 83 1246 84 Guns 875 | 39 752 84 Cannons . | . . . Explosions 538 | 44 494 . Melee . | . . . Ramming . | . . . Kinetic 357 | 27 330 . Thermal 446 | 44 318 84 Explosive 494 | . 494 . Electromagnetic 116 | 12 104 . Impact . | . . . Slashing . | . . . Piercing . | . . . Highest Corruption . | . . . Average Corruption . | . . . Corruption Purged . | . . . Corruption Blocked . | . . . Overload Shots . | . . . Overflow Damage 64 | . 64 . Projectiles . | . . . Explosions 64 | . 64 . Melee . | . . . Knockbacks . | . . . Impact . | . . . Kinetic . | . . . Secondary . | . . . Self-Inflicted Damage 169 | 26 143 . Shots 5 | 1 4 . Rammed . | . . . Targets Rammed . | . . . Kicked . | . . . Crushed . | . . . Highest Temperature 188 | 12 188 3 Average Temperature 55 | 12 57 3 Received Heat Transfer 453 | . 429 24 Siege Activations . | . . . Robots Corrupted . | . . . Combat Hostiles . | . . . Parts Fried . | . . . Impact Corruptions . | . . . Robots Melted . | . . . Combat Hostiles . | . . . Parts Melted 1 | . . 1 Heat Transferred 1019 | 50 784 185 Parts Sabotaged . | . . . Parts Stolen . | . . . Parts Stripped . | . . . Power Chain Reactions 1 | 1 . . Alert | -11 -10 -10 ------- Run | Yrd Mat Sub Peak Influence 395 | 5 395 . Initial 3 | . 3 . Average 176 | 2 187 . Maximum Alert Level 1 | . 1 . Low Security (%) 45 | 100 41 . Level 1 54 | . 58 . Level 2 . | . . . Level 3 . | . . . Level 4 . | . . . Level 5 . | . . . High Security . | . . . Max Security . | . . . Squads Dispatched 6 | . 6 . Investigation 3 | . 3 . Extermination . | . . . Reinforcement 3 | . 3 . Assault . | . . . Garrison . | . . . Intercept . | . . . Searches Triggered . | . . . Construction Impeded . | . . . Haulers Reinforced . | . . . Active Scanning Responses . | . . . Cargo Convoy Interrupts . | . . . Stealth | -11 -10 -10 --------- Run | Yrd Mat Sub Distress Signals 3 | . 3 . Communications Jammed . | . . . Distress Signals . | . . . Times Spotted 30 | . 28 2 Peak Tracking Total 7 | . 7 2 Tactical Retreats 1 | . 1 . Traps | -11 -10 -10 ------- Run | Yrd Mat Sub Traps Triggered 2 | . 2 . Indirectly . | . . . Trap Hack Attempts . | . . . Triggered . | . . . Disarmed . | . . . Reprogrammed 3 | . 3 . Reused . | . . . Traps Extracted . | . . . Installed . | . . . Triggered . | . . . Machines | -11 -10 -10 ---------- Run | Yrd Mat Sub Machines Disabled 5 | . 5 . Max in Single Turn 2 | . 2 . Machines Repaired . | . . . Machines Dismantled . | . . . Machines Sabotaged . | . . . Overloaded Fab Kills . | . . . Hacking | -11 -10 -10 --------- Run | Yrd Mat Sub Machines Accessed 3 | . 2 1 Terminals 2 | . 2 . Fabricators . | . . . Repair Stations . | . . . Recycling Units . | . . . Scanalyzers . | . . . Garrison Access . | . . . Total Hacks 11 | . 7 4 Successful 10 | . 6 4 Failed 1 | . 1 . Catastrophic . | . . . Database Lockouts . | . . . Manual . | . . . Terminals 7 | . 7 . Fabricators . | . . . Repair Stations . | . . . Recycling Units . | . . . Scanalyzers . | . . . Garrison Access . | . . . Terminal Hacks 10 | . 6 4 Record 8 | . 4 4 Locate Traps 1 | . 1 . Reprogram Traps 1 | . 1 . Fabricator Hacks . | . . . Repair Station Hacks . | . . . Recycling Unit Hacks . | . . . Scanalyzer . | . . . Garrison Access Hacks . | . . . Unauthorized Hacks . | . . . Terminals . | . . . Fabricators . | . . . Repair Stations . | . . . Recycling Units . | . . . Scanalyzers . | . . . Garrison Access . | . . . Data Cores Recovered . | . . . Used . | . . . Hacking Detections 1 | . 1 . Full Trace Events 1 | . 1 . Feedback Events . | . . . Feedback Blocked . | . . . Robot Schematics Acquired . | . . . Robots Built . | . . . Authchips . | . . . Time . | . . . Total Robot Build Rating . | . . . Part Schematics Acquired . | . . . Parts Built . | . . . Authchips . | . . . Time . | . . . Total Part Build Rating . | . . . Parts Repaired . | . . . Time . | . . . Parts Recycled . | . . . Recycled Matter . | . . . Retrieved Matter . | . . . Retrieved Components . | . . . Parts Scanalyzed . | . . . Part Schematics Acquired . | . . . Parts Damaged . | . . . Bothacking | -11 -10 -10 ------------ Run | Yrd Mat Sub Used RIF Installer . | . . . Robots Hacked . | . . . Non-combat . | . . . Combat . | . . . Robot Hacks Applied . | . . . Relay Couplers Released . | . . . Fabnet Peak Effective % . | . . . Robots Rewired . | . . . Allies Hacked . | . . . Hacks Repelled . | . . . Allies | -11 -10 -10 -------- Run | Yrd Mat Sub Total Allies . | . . . Largest Group . | . . . Highest-Rated Group . | . . . Highest-Rated Ally . | . . . Total Orders . | . . . Ally Attacks . | . . . Total Damage . | . . . Kills . | . . . Allies Corrupted . | . . . Allies Melted . | . . . Intel | -11 -10 -10 ------- Run | Yrd Mat Sub Robot Analysis Total . | . . . Derelict Logs Recovered . | . . . Drone Launches . | . . . Drone Recoveries . | . . . Exploration | -11 -10 -10 ------------- Run | Yrd Mat Sub Turns Passed 1253 | 77 1129 47 Spaces Moved 603 | 49 521 33 Core 9 | 9 . . Treads 117 | . 117 . Legs . | . . . Wheels 477 | 40 404 33 Hover . | . . . Flight . | . . . Fastest Speed 50 | 50 90 95 Average Speed 112 | 82 116 95 Slowest Speed 240 | 90 240 95 Overloaded Moves . | . . . Propulsion Burnouts . | . . . Robots Hopped . | . . . Cave-ins Triggered . | . . . Exploration Rate (%) 24 | 4 66 4 Regions Visited 2 Branch Regions 1 Pre-discovered Areas . | . . . Known Exits Taken . | . . . Unknown Exits Taken 2 | 1 1 . Scrap Searched . | . . . Spaces Dug . | . . . Terrain Destroyed 81 | 1 80 . Melee . | . . . Projectile . | . . . AOE 81 | 1 80 . Terrain Rammed . | . . . Walls Destroyed . | . . . Machines Disabled . | . . . Actions | -11 -10 -10 --------- Run | Yrd Mat Sub Total 1056 | 81 934 41 Wait 332 | 12 317 3 Move 601 | 48 520 33 Hop . | . . . Pick Up 31 | 13 18 . Fast Attach 1 | . 1 . Attach 13 | 6 7 . Detach . | . . . Swap 6 | . 6 . Drop 7 | . 7 . Fire 65 | 2 58 5 Melee . | . . . Ram . | . . . Kick . | . . . Crush . | . . . Escape Stasis . | . . . Rewire . | . . . Trap . | . . . Miscellaneous . | . . . Route ------- -11/Scrapyard -10/Materials (discovered 3 exits: [*Mat] / [*Min] / *Sub) -10/Subcaves (discovered 3 exits: Mat x2 / Rec) History --------- Turn | Location | Event 24 | -11/Scrapyard | Discovered new exit (range 14) 78 | -11/Scrapyard | Entered Materials 216 | -10/Materials | Discovered new exit (range 9) 312 | -10/Materials | Build established: Mutant 409 | -10/Materials | Core integrity fell below 50% 583 | -10/Materials | Core integrity fell below 20% 620 | -10/Materials | Lost 3 parts (1n2w) 911 | -10/Materials | Discovered new exit (range 16) 1155 | -10/Materials | Discovered new exit (range 5) 1207 | -10/Materials | Entered Subcaves 1242 | -10/Subcaves | Visited Clippyterm 1245 | -10/Subcaves | Identified exit to Recycling 1245 | -10/Subcaves | Identified exit to Materials 1254 | -10/Subcaves | Destroyed by I6-7NY(R) with Subdweller Laser Last Messages --------------- There must be something fundamentally wrong with the algorithm, because no matter how much data I collect to feed it, half the time it still manages to suggest unhelpful sample queries and responses. --DD-NU8 >>Intel! "^q" It looks like you're in search of a way out of here, would you like help? >>Record! "Letterhead" It looks like you're writing a letter, sorry I don't know how to do that. >>Record! "Bogan" It looks like you're interested in the dark side, V4-D3R would be pleased, though I don't think they're in the habit of teaching apprentices. Machine disabled. Sub. Monowheel melted. 02-VTR(R) destroyed. Switching to secondary target: I6-7NY(R). Map ----- +----------------------------------------------------+ | ?????????????????????????????????????????????????? | | ?????????????????????????????????????????????????? | | ?????????????????????????????????????????????????? | | ?????????????????????????????????????????????????? | | ?????????????????????????????????????????????????? | | ?????????????????????????????????????????????????? | | ?????????????????????????????????????????????????? | | ?????????????????????????????????????????????????? | | ?????????????????????????????????????????????????? | | ?????????????????????????????????????????????????? | | ?????????????????????????????????????????????????? | | ?????????????????????????????????????????????????? | | ?????????????????????????????????????????????????? | | ?????????????????????????????????????????????????? | | ?????????????????????????????????????????????????? | | ?????????????????????????????????????????????????? | | ?????????????????????????????????????????????????? | | ?????????????????????????????????????????????????? | | ?????????????????????????????????????????????????? | | ?????????????????????????????????????????????????? | | ?????????????????????????????????????????????????? | | ?????????????????????????????????????????????????? | | ??????????????????????#######???#????????????????? | | ??????????????????????#"""""#??? #???????????????? | | ??????????????????????# "X""#?? #???????????????? | | ???????????????####???#"&@&"#?? ###?????????????? | | ??????????????## #???###%###?? "?????????????? | | ??????????????# #????##R###?#""""#?????????????? | | ?????????????## ###?##!& ##""""#??????????????? | | ???????????### ### #???????????????? | | ??????????## ## ##???????????????? | | ??????????# ###????????????????? | | ??????????# #### # ##?????????????????? | | ??????????# ??# ## ## ## %#?????????? | | ??????????# ???# ### ??? | | ?????????? ????## #?## ## ##?????????? | | ?????????#?????? #??## ### %########??????????? | | ???????????????? #???# #?#% ????????????????? | | ???????????????? ##?? % ##? ???????????????? | | ??????????????? #??# #?# ?????????????? | | ???????????????#???# # ?## # # ?????????????? | | ??????????????????# # ##?## ####?#????????????? | | ??????????????????# # #???###?????????????????? | | ??????????????????##?## #???????????????????????? | | ??????????????????????# ???????????????????????? | | ??????????????????????# #???????????????????????? | | ?????????????????????? ???????????????????????? | | ?????????????????????? ???????????????????????? | | ?????????????????????? ???????????????????????? | | ??????????????????????# % ???????????????????????? | +----------------------------------------------------+ Best States ------------- Heat Dissipation 25 Energy Generation 10 Energy Capacity 125 Matter Stores 300 Matter Capacity 300 Sight Range 16 Terrain Scan Density 10 Utility Shielding 33 Evasion (%) 50 Recoil Reduction 2 Item Schematics ----------------- None Robot Schematics ------------------ None Fabricated ------------ Nothing Alien Tech Used ----------------- None Achievements -------------- None Challenges ------------ None Game ------ Seed RestorationTacticalJammer Manual? 0 Play Time 00:15:28 Cumulative 5.9 hours Start 2024.04.09 @ 06:30:58 End 2024.04.09 @ 06:48:30 Sessions 1 Manual Loads 0 Difficulty Rogue Special Mode None Game No. 6 Rogue 6 Adventurer 0 Explorer 0 Win Type - Total 0 Types 0/0/0/0/0/0/0/0/0 Lore% 3 Gallery% 10 Achievement% 8 Wizard Run 0 Options --------- Layout 1 ASCII 0 Keyboard 0 Movement Mouse Keybinds 0 Fullscreen 1 Font 24/Smallcaps Map View 50x35 Zoom Use 0% Tactical HUD 0 Map Filters NONE Filters NONE Steam 1 RUN: 9ec882d2-49c7-46e9-aac5-84a22b4f7ad1